bitfinex-derivatives/quotes_BNBF0:USTF0_20250907
["timestamp","ask_amount","ask_price","bid_price","bid_amount"]
[1757287126876,2.5721516,883.36,879.47,0.74864534]
[1757287127672,2.5721516,883.36,879.46,2.5691187]
[1757287128976,3.6003135,883.87,879.11,3.417]
[1757287129275,5.143305,884.65,879.11,3.417]
[1757287129577,2.5569713,883.58,881.02,3.2939491]
[1757287129875,2.5569713,884.72,881.29,1.7736649]
[1757287130076,2.5569713,885.49,881.51,0.7601421]
[1757287130372,2.5569713,885.49,881.54,1.7736649]
[1757287130574,0.1973354,884.5,881.78,1.7736649]
[1757287130778,0.1973354,884.5,881.77,1.7736649]
[1757287130976,0.1973354,884.5,881.67,1.7736649]
[1757287131175,0.1973354,884.5,881.61,1.7736649]
[1757287131379,0.1973354,884.5,881.54,0.7601421]
[1757287131579,0.1973354,884.5,881.18,0.7601421]
[1757287131876,0.1973354,884.5,881.1,0.7601421]
[1757287132074,0.1973354,884.5,880.84,3.2939491]
[1757287132276,2.5569713,884.05,880.64,3.2939491]
[1757287132480,2.5569713,884.05,880.63,3.2939491]
[1757287132781,2.5569713,884.22,880.63,1.7736649]
[1757287133277,2.5569713,884.35,880.63,1.7736649]
[1757287133781,2.5569713,883.79,880.53,3.2939491]
[1757287134278,2.5569713,883.82,880.53,3.2939491]
[1757287134481,2.5569713,883.82,880.54,4.02835216]
[1757287134681,2.5569713,883.82,880.55,0.73440289]
[1757287134978,2.5569713,883.84,880.58,0.7601421]
[1757287135278,3.5797599,884.12,880.67,0.7601421]
[1757287135477,0.1973354,884.5,880.75,0.7601421]
[1757287135679,0.1973354,884.5,880.8,0.7601421]
[1757287135881,0.1973354,884.5,880.88,0.7601421]
[1757287136081,0.1973354,884.5,881.03,1.7736649]
[1757287136378,0.1973354,884.5,881.19,0.7601421]
[1757287136682,0.1973354,884.5,881.29,0.7601421]
[1757287136878,0.1973354,884.5,881.62,1.7736649]
[1757287137177,0.1973354,884.5,881.76,0.7601421]
[1757287137380,0.1973354,884.5,880.79,2.533807]
[1757287137381,0.1973354,884.5,881.77,0.7282961]
[1757287137583,0.1973354,884.5,881.88,0.7601421]
[1757287137782,0.1973354,884.5,882.0,0.7601421]
[1757287137985,0.1973354,884.5,881.93,0.7601421]
[1757287138185,0.1973354,884.5,881.91,0.7601421]
[1757287138379,0.1973354,884.5,881.92,0.72651447]
[1757287138583,0.1973354,884.5,881.82,0.7601421]
[1757287138781,0.1973354,884.5,881.83,1.48669552]
[1757287138982,0.1973354,884.5,881.84,0.72655342]
[1757287139182,0.1973354,884.5,881.91,0.7601421]
[1757287139388,0.1973354,884.5,881.92,0.72655342]
[1757287139584,0.1973354,884.5,881.93,0.72655342]
[1757287139784,0.1973354,884.5,881.94,0.72655342]
[1757287140084,0.1973354,884.5,882.19,0.7601421]
[1757287140283,0.1973354,884.5,882.2,0.72655342]
[1757287140485,0.1973354,884.5,882.26,0.7601421]
[1757287140686,0.1973354,884.5,882.27,0.72655342]
[1757287140885,0.1973354,884.5,882.28,0.72655342]
[1757287141087,0.1973354,884.5,882.29,0.72655342]
[1757287141383,0.1973354,884.5,881.89,0.7601421]
[1757287141589,0.1973354,884.5,882.04,0.7601421]
[1757287141790,0.1973354,884.5,882.05,0.72233718]
[1757287141988,0.1973354,884.5,882.06,0.72233718]
[1757287142188,0.1973354,884.5,882.07,0.72233718]
[1757287142386,0.1973354,884.5,882.08,0.72233718]
[1757287142586,0.1973354,884.5,882.09,0.72233718]
[1757287142887,0.1973354,884.5,882.36,0.7601421]
[1757287143089,0.1973354,884.5,882.37,0.72233718]
[1757287143288,0.1973354,884.5,882.38,0.72233718]
[1757287143488,0.1973354,884.5,881.11,3.049]
[1757287143489,0.1973354,884.5,882.47,0.7601421]
[1757287143688,0.1973354,884.5,882.51,0.7601421]
[1757287143887,0.1973354,884.5,882.66,0.7601421]
[1757287144093,0.1973354,884.5,883.06,0.7601421]
[1757287144287,0.1973354,884.5,883.07,0.72233718]
[1757287144488,0.1973354,884.5,883.47,0.7601421]
[1757287144687,0.1973354,884.5,883.49,0.7601421]
[1757287144993,0.1973354,884.5,882.94,0.7601421]
[1757287145187,0.1973354,884.5,882.99,0.7601421]
[1757287145489,0.1973354,884.5,883.36,0.7601421]
[1757287145792,0.1973354,884.5,883.37,0.71262862]
[1757287145993,0.1973354,884.5,883.38,0.71262862]
[1757287146189,0.1973354,884.5,882.88,0.7601421]
[1757287146393,0.1973354,884.5,882.89,0.707135]
[1757287146691,0.1973354,884.5,882.98,0.7601421]
[1757287146892,0.1973354,884.5,883.05,0.7601421]
[1757287147091,0.1973354,884.5,883.06,0.707135]
[1757287147296,0.1973354,884.5,883.07,0.707135]
[1757287147592,0.1973354,884.5,883.11,0.7601421]
[1757287147891,0.1973354,884.5,883.08,0.707135]
[1757287147892,0.1973354,884.5,883.12,0.707135]
[1757287148191,0.1973354,884.5,882.47,2.676]
[1757287148192,0.1973354,884.5,883.13,0.707135]
[1757287148392,2.5569713,890.53,883.14,0.707135]
[1757287148589,0.19665183,884.63,883.15,0.707135]
[1757287148789,2.5569713,890.73,883.25,0.7601421]
[1757287148990,0.19662739,884.67,883.26,0.707135]
[1757287149190,2.5569713,890.49,883.47,0.7601421]
[1757287149393,3.5797599,891.36,882.47,2.676]
[1757287149394,2.5569713,890.9,883.48,0.707135]
[1757287149592,2.5569713,890.9,882.47,2.676]
[1757287149593,2.5569713,890.9,883.49,0.69763269]
[1757287149795,2.5569713,890.9,883.5,0.69763269]
[1757287149993,2.5569713,890.45,883.51,0.69763269]
[1757287150194,2.5569713,890.54,883.52,0.69763269]
[1757287150398,0.19657685,888.72,883.53,0.69763269]
[1757287150594,0.19657685,888.72,883.54,0.69763269]
[1757287150798,0.19657685,888.72,883.65,0.7601421]
[1757287150995,0.19657685,888.72,883.67,0.7601421]
[1757287151200,0.19657685,888.72,883.77,0.7601421]
[1757287151401,0.19657685,888.72,883.78,0.69763269]
[1757287151602,0.19657685,888.72,882.47,2.676]
[1757287151902,0.19657685,888.72,882.48,0.693477]
[1757287152101,0.19657685,888.72,882.47,2.676]
[1757287152303,2.5569713,888.02,882.47,2.676]
[1757287152503,0.19657685,888.72,882.47,2.676]
[1757287153499,0.19657685,888.72,882.48,0.69318831]
[1757287153699,0.19657685,888.72,882.49,0.69318831]
[1757287153901,0.19657685,888.72,882.5,0.69318831]
[1757287154102,0.19657685,888.72,882.51,0.69318831]
[1757287154301,0.19657685,888.72,882.52,0.69318831]
[1757287154503,0.19657685,888.72,882.47,2.676]
[1757287154704,0.19657685,888.72,882.48,0.69172122]
[1757287154900,0.19657685,888.72,882.49,0.69172122]
[1757287155199,0.19657685,888.72,882.5,0.69172122]
[1757287155405,0.19657685,888.72,882.51,0.69172122]
[1757287155607,0.19657685,888.72,882.52,0.69172122]
[1757287155803,0.19657685,888.72,882.47,2.676]
[1757287155804,0.19657685,888.72,882.53,0.69172122]
[1757287156101,0.19657685,888.72,882.54,0.69172122]
[1757287156301,0.19657685,888.72,882.55,0.69172122]
[1757287156503,0.19657685,888.72,882.56,0.69172122]
[1757287156706,0.19657685,888.72,882.47,2.676]
[1757287156908,0.19657685,888.72,882.48,0.68955851]
[1757287157106,0.19657685,888.72,882.49,0.68955851]
[1757287157404,0.19657685,888.72,882.5,0.68955851]
[1757287157708,0.19657685,888.72,882.47,2.676]
[1757287157906,0.19657685,888.72,882.48,0.68894307]
[1757287158203,0.19657685,888.72,882.49,0.68894307]
[1757287158408,0.19657685,888.72,882.5,0.68894307]
[1757287158607,0.19657685,888.72,882.47,2.676]
[1757287161606,2.5569713,888.65,882.47,2.676]
[1757287162016,2.5569713,888.32,882.47,2.676]
[1757287162518,3.5797599,888.64,882.47,2.676]
[1757287162817,0.19657685,888.72,882.47,2.676]
[1757287163916,2.5569713,888.71,882.47,2.676]
[1757287164419,2.5569713,887.97,880.56,0.7601421]
[1757287164814,2.5569713,888.08,880.53,0.7601421]
[1757287165116,2.5569713,888.08,880.54,0.7601421]
[1757287165315,2.5569713,888.06,880.56,0.7601421]
[1757287165618,2.5569713,888.06,880.55,0.7601421]
[1757287165914,2.5569713,888.28,880.55,0.7601421]
[1757287166315,2.5569713,888.28,880.17,1.5202842]
[1757287166316,2.5569713,888.41,880.56,0.7601421]
[1757287166620,2.5569713,888.41,880.53,0.7601421]
[1757287166817,2.5569713,888.57,880.53,0.7601421]
[1757287167020,2.5569713,888.57,880.52,0.7601421]
[1757287167216,2.5569713,888.57,880.67,3.073]
[1757287167420,0.19657685,888.72,880.67,3.073]
[1757287167620,0.19657685,888.72,881.12,0.69513558]
[1757287167817,0.19657685,888.72,881.13,0.69513558]
[1757287168016,0.19657685,888.72,880.67,3.073]
[1757287168017,0.19657685,888.72,881.14,0.69513558]
[1757287168221,0.19657685,888.72,881.15,0.69513558]
[1757287168520,0.19657685,888.72,881.16,0.69513558]
[1757287168720,0.19657685,888.72,881.17,0.69513558]
[1757287168922,0.19657685,888.72,881.18,0.69513558]
[1757287169124,0.19657685,888.72,881.19,0.69513558]
[1757287169421,0.19657685,888.72,881.2,0.69513558]
[1757287169621,0.19657685,888.72,881.21,0.69513558]
[1757287169821,2.5569713,888.66,881.22,0.69513558]
[1757287170122,2.5569713,888.66,881.23,0.69513558]
[1757287170321,0.19657685,888.72,881.24,0.69513558]
[1757287170621,0.19657685,888.72,881.25,0.69513558]
[1757287170818,0.19657685,888.72,881.26,0.69513558]
[1757287171122,0.19657685,888.72,881.27,0.69513558]
[1757287171317,0.19657685,888.72,881.28,0.69513558]
[1757287171516,0.19657685,888.72,881.27,2.421]
[1757287171517,0.19657685,888.72,881.29,0.69513558]
[1757287171816,0.19657685,888.72,881.3,0.69513558]
[1757287172024,0.19657685,888.72,881.31,0.69513558]
[1757287172321,0.19657685,888.72,881.32,0.69513558]
[1757287172522,0.19657685,888.72,881.33,0.69513558]
[1757287172721,0.19657685,888.72,881.34,0.69513558]
[1757287173020,0.19657685,888.72,881.35,0.69513558]
[1757287173221,0.19657685,888.72,881.36,0.69513558]
[1757287173422,0.19657685,888.72,881.37,0.69513558]
[1757287173618,2.5569713,888.58,881.38,0.69513558]
[1757287173818,2.5569713,888.58,881.39,0.69513558]
[1757287174023,2.5569713,888.58,881.4,0.69513558]
[1757287174323,0.19657685,888.72,881.41,0.69513558]
[1757287174324,2.5569713,888.1,881.41,0.69513558]
[1757287174522,2.5569713,888.1,881.42,0.69513558]
[1757287174722,2.5569713,888.03,881.43,0.69513558]
[1757287175021,2.5569713,888.03,881.44,0.69513558]
[1757287175222,2.5569713,887.88,881.45,0.69513558]
[1757287175421,2.5569713,887.88,881.46,0.69513558]
[1757287175722,2.5569713,888.0,881.47,0.69513558]
[1757287175918,2.5569713,888.0,881.48,0.69513558]
[1757287176116,2.5569713,888.0,881.27,2.421]
[1757287176117,2.5569713,888.0,881.49,0.69513558]
[1757287176323,2.5569713,888.01,881.5,0.69513558]
[1757287176518,2.5569713,888.01,881.51,0.69513558]
[1757287176720,2.5569713,888.08,881.52,0.69513558]
[1757287176921,2.5569713,888.08,881.53,0.70510503]
[1757287177122,2.5569713,888.08,881.27,2.421]
[1757287177322,2.5569713,887.94,881.28,0.70561397]
[1757287177522,2.5569713,887.94,881.29,0.70561397]
[1757287177722,2.5569713,887.88,881.3,0.70561397]
[1757287177921,2.5569713,887.88,881.31,0.70561397]
[1757287178222,2.5569713,887.86,881.32,0.70561397]
[1757287178422,2.5569713,887.86,881.33,0.70561397]
[1757287178618,2.5569713,887.86,881.34,0.70561397]
[1757287178821,2.5569713,887.56,881.35,0.70561397]
[1757287179122,2.5569713,887.56,881.36,0.70561397]
[1757287179322,2.5569713,887.94,881.55,0.7601421]
[1757287179519,2.5569713,887.94,881.56,0.70561397]
[1757287179718,2.5569713,887.94,881.57,0.70561397]
[1757287179919,2.5569713,888.0,881.58,0.70561397]
[1757287180123,2.5569713,888.0,881.59,0.70561397]
[1757287180424,2.5569713,887.89,881.68,0.7601421]
[1757287180719,2.5569713,887.89,881.69,0.70561397]
[1757287180923,2.5569713,887.89,881.7,0.70561397]
[1757287181119,2.5569713,887.84,881.71,0.70561397]
[1757287181322,2.5569713,887.84,881.72,0.70561397]
[1757287181523,2.5569713,887.73,881.73,0.70561397]
[1757287181821,2.5569713,887.73,881.74,0.70561397]
[1757287182024,2.5569713,887.74,881.75,0.70561397]
[1757287182224,2.5569713,887.74,881.76,0.70561397]
[1757287182524,2.5569713,887.63,881.77,0.70561397]
[1757287182722,2.5569713,887.63,881.78,0.70561397]
[1757287182922,2.5569713,887.63,881.79,0.70561397]
[1757287183118,2.5569713,887.46,881.8,0.70561397]
[1757287183320,2.5569713,887.46,881.81,0.70561397]
[1757287183520,2.5569713,887.44,881.82,0.70561397]
[1757287183725,2.5569713,887.44,881.83,0.70561397]
[1757287183918,2.5569713,887.44,881.84,0.70561397]
[1757287184124,2.5569713,887.42,881.85,0.70561397]
[1757287184424,2.5569713,887.42,881.86,0.70561397]
[1757287184624,2.5569713,887.72,881.87,0.70561397]
[1757287184824,2.5569713,887.72,881.88,0.70561397]
[1757287185024,2.5569713,887.72,881.89,0.70561397]
[1757287185327,2.5569713,887.71,881.9,0.70561397]
[1757287185522,2.5569713,887.71,881.91,0.70561397]
[1757287185819,2.5569713,887.7,881.92,0.70561397]
[1757287186024,2.5569713,887.7,881.93,0.70561397]
[1757287186226,2.5569713,887.19,881.94,0.70561397]
[1757287186425,2.5569713,887.19,881.95,0.70561397]
[1757287186625,2.5569713,887.15,881.96,0.70561397]
[1757287186823,2.5569713,887.15,881.97,0.70561397]
[1757287187025,2.5569713,887.15,881.98,0.70561397]
[1757287187329,2.5569713,887.23,881.99,0.70561397]
[1757287187524,2.5569713,887.23,882.0,0.70561397]
[1757287187726,2.5569713,887.22,882.01,0.70561397]
[1757287188025,2.5569713,887.22,882.02,0.70561397]
[1757287188327,2.5569713,887.39,882.03,0.70561397]
[1757287188623,2.5569713,887.39,882.04,0.70561397]
[1757287188823,2.5569713,887.23,882.05,0.70561397]
[1757287189024,2.5569713,887.23,882.06,0.70561397]
[1757287189227,2.5569713,887.14,882.07,0.70561397]
[1757287189422,2.5569713,887.14,882.08,0.70561397]
[1757287189626,2.5569713,887.14,881.63,0.7601421]
[1757287189824,2.5569713,886.84,881.68,0.7601421]
[1757287190028,2.5569713,886.84,881.69,0.72012035]
[1757287190327,2.5569713,886.82,881.7,0.72012035]
[1757287190528,2.5569713,886.82,881.77,0.7601421]
[1757287190728,2.5569713,886.82,881.78,0.72012035]
[1757287191028,2.5569713,886.32,881.79,0.72012035]
[1757287191325,2.5569713,886.31,881.8,0.72012035]
[1757287191628,2.5569713,886.31,881.81,0.72012035]
[1757287191927,2.5569713,886.31,881.82,0.72012035]
[1757287192127,2.5569713,886.31,881.83,0.72012035]
[1757287192325,2.5569713,886.31,881.84,0.72012035]
[1757287192524,2.5569713,886.26,881.85,0.72012035]
[1757287192727,2.5569713,886.26,881.83,0.7601421]
[1757287192728,2.5569713,886.26,881.86,0.72012035]
[1757287192928,2.5569713,886.61,881.87,0.72012035]
[1757287193129,2.5569713,886.61,881.88,0.72012035]
[1757287193429,3.5797599,887.04,881.89,0.72012035]
[1757287193629,3.5797599,887.04,881.9,0.72012035]
[1757287193826,3.5797599,887.04,881.91,0.72012035]
[1757287194129,2.5569713,887.12,881.92,0.72012035]
[1757287194329,2.5569713,887.12,881.93,0.72012035]
[1757287194526,2.5569713,887.12,881.65,0.7601421]
[1757287194527,2.5569713,886.99,881.94,0.72012035]
[1757287194732,2.5569713,886.99,881.95,0.72012035]
[1757287194933,2.5569713,886.99,881.96,0.72012035]
[1757287195133,2.5569713,886.97,881.97,0.72012035]
[1757287195434,2.5569713,886.97,881.98,0.72012035]
[1757287195633,2.5569713,886.53,881.99,0.72012035]
[1757287195833,2.5569713,886.53,881.74,0.7601421]
[1757287196133,2.5569713,886.36,881.75,0.72489995]
[1757287196334,2.5569713,886.36,881.78,0.7601421]
[1757287196530,2.5569713,886.36,881.79,0.72489995]
[1757287196731,3.5797599,886.78,881.8,0.72489995]
[1757287196732,2.5569713,886.62,881.8,0.72489995]
[1757287196934,2.5569713,886.62,881.81,0.72489995]
[1757287197131,2.5569713,886.47,881.82,0.72489995]
[1757287197335,2.5569713,886.47,881.83,0.72489995]
[1757287197635,2.5569713,886.46,881.84,0.72489995]
[1757287197833,2.5569713,886.46,881.85,0.72489995]
[1757287198032,2.5569713,886.46,881.86,0.72489995]
[1757287198232,2.5569713,886.46,881.87,0.72489995]
[1757287198435,2.5569713,886.46,881.88,0.72489995]
[1757287198734,2.5569713,886.66,881.89,0.72489995]
[1757287198932,2.5569713,886.66,881.9,0.72489995]
[1757287199134,2.5569713,886.67,881.91,0.72489995]
[1757287199334,2.5569713,886.67,881.92,0.72489995]
[1757287199533,2.5569713,886.67,881.93,0.72489995]
[1757287199733,2.5569713,886.67,881.94,0.72489995]
[1757287199932,2.5569713,886.67,881.95,0.72489995]
[1757287200135,2.5569713,886.67,881.96,0.72489995]
[1757287200435,2.5569713,886.67,881.97,0.72489995]
[1757287200632,2.5569713,886.67,881.98,0.72489995]
[1757287200836,10.274138,889.85,880.12,2.533807]
[1757287200837,2.5569713,887.19,882.26,0.7601421]
[1757287201136,2.5569713,887.19,882.32,0.7601421]
[1757287201338,2.5569713,887.19,882.33,0.72489995]
[1757287201537,2.5569713,887.23,882.34,0.72489995]
[1757287201733,2.5569713,887.23,882.35,0.72489995]
[1757287201937,2.5569713,886.88,882.41,0.7601421]
[1757287202138,2.5569713,886.88,882.45,0.7601421]
[1757287202338,2.5569713,886.88,882.46,1.48504205]
[1757287202534,2.5569713,886.45,882.48,0.7601421]
[1757287202739,2.5569713,886.45,882.49,0.72489995]
[1757287202938,3.5797599,886.89,882.5,0.72489995]
[1757287203139,2.5569713,887.05,882.18,0.7601421]
[1757287203340,2.5569713,887.05,882.19,0.72483838]
[1757287203541,2.5569713,887.05,882.17,0.7601421]
[1757287203542,2.5569713,886.51,882.2,0.72483838]
[1757287203737,2.5569713,886.51,882.21,0.72483838]
[1757287204035,2.5569713,887.1,882.22,0.72483838]
[1757287204335,2.5569713,887.1,882.23,0.72483838]
[1757287204537,2.5569713,887.25,882.24,0.72483838]
[1757287204742,2.5569713,887.25,882.26,0.7601421]
[1757287205035,2.5569713,886.62,882.27,0.72483838]
[1757287205240,2.5569713,886.62,882.28,0.72483838]
[1757287205436,2.5569713,887.16,882.41,0.7601421]
[1757287205636,2.5569713,887.16,882.42,0.72483838]
[1757287205938,2.5569713,887.17,882.43,0.72483838]
[1757287206142,2.5569713,887.17,882.44,0.72483838]
[1757287206440,2.5569713,887.1,882.52,0.7601421]
[1757287206637,2.5569713,887.37,882.74,0.7601421]
[1757287206842,2.5569713,887.41,882.89,0.7601421]
[1757287207037,2.5569713,887.41,882.92,0.7601421]
[1757287207242,2.5569713,887.41,883.0,0.7601421]
[1757287207537,2.5569713,887.44,883.01,0.72483838]
[1757287207741,2.5569713,887.44,883.02,0.72483838]
[1757287207939,2.5569713,887.44,883.03,0.72483838]
[1757287208139,2.5569713,887.44,883.04,0.72483838]
[1757287208442,2.5569713,887.41,883.05,0.72483838]
[1757287208639,2.5569713,887.41,883.06,0.72483838]
[1757287208838,2.5569713,887.41,883.07,0.72483838]
[1757287209039,2.5569713,887.48,883.08,0.72483838]
[1757287209342,2.5569713,887.48,883.09,1.48498048]
[1757287209642,2.5569713,887.42,883.14,0.7601421]
[1757287209838,2.5569713,887.52,883.23,0.7601421]
[1757287210141,2.5569713,887.52,883.24,0.72483838]
[1757287210340,2.5569713,887.87,883.28,0.7601421]
[1757287210539,2.5569713,887.87,883.29,0.72483838]
[1757287210738,2.5569713,887.84,883.3,0.72483838]
[1757287211042,2.5569713,887.84,883.31,0.72483838]
[1757287211244,2.5569713,887.84,883.32,1.48498048]
[1757287211442,2.5569713,887.71,883.32,0.7601421]
[1757287211740,2.5569713,887.71,883.23,0.7601421]
[1757287212045,2.5569713,887.88,883.32,0.7601421]
[1757287212644,5.143305,889.19,883.34,0.7601421]
[1757287212645,2.5569713,887.94,883.34,0.7601421]
[1757287212839,2.5569713,887.94,883.33,0.7601421]
[1757287213038,2.5569713,887.92,883.33,0.7601421]
[1757287213443,2.5569713,887.92,883.34,1.48839123]
[1757287213640,2.5569713,887.92,883.34,0.7601421]
[1757287214741,2.5569713,887.87,883.34,0.7601421]
[1757287215144,2.5569713,887.82,883.34,0.7601421]
[1757287215748,2.5569713,887.77,883.34,0.7601421]
[1757287216149,2.5569713,887.78,883.34,0.7601421]
[1757287216650,3.5797599,887.66,883.34,1.7736649]
[1757287216848,2.5569713,887.23,883.36,0.7601421]
[1757287217047,2.5569713,887.23,883.37,1.49075089]
[1757287217246,3.5797599,887.66,883.37,0.7601421]
[1757287217749,2.5569713,887.73,883.37,0.7601421]
[1757287217945,2.5569713,887.73,883.42,0.7601421]
[1757287218250,2.5569713,887.88,883.42,0.7601421]
[1757287218450,2.5569713,887.88,883.35,1.7736649]
[1757287218651,3.5797599,887.45,883.33,1.7736649]
[1757287218851,2.5569713,886.95,883.25,1.7736649]
[1757287219354,2.5569713,887.04,883.25,1.7736649]
[1757287221154,2.5569713,887.04,883.04,1.7736649]
[1757287221356,2.5569713,886.91,883.05,1.7736649]
[1757287221652,2.5569713,886.91,882.93,3.2939491]
[1757287221856,2.5569713,886.57,882.94,4.0279402]
[1757287222055,2.5569713,886.57,882.94,3.2939491]
[1757287222457,2.5569713,886.55,882.94,3.2939491]
[1757287223257,2.5569713,886.55,882.93,3.2939491]
[1757287223457,2.5569713,886.54,882.93,3.2939491]
[1757287225958,2.5569713,886.56,882.93,3.2939491]
[1757287226855,2.5569713,886.56,882.99,1.7736649]
[1757287227058,2.5569713,887.46,882.99,1.7736649]
[1757287227356,2.5569713,887.46,883.02,0.7601421]
[1757287227553,2.5569713,887.55,883.02,0.7601421]
[1757287227758,2.5569713,887.55,883.02,1.7736649]
[1757287228259,2.5569713,887.55,882.72,1.5202842]
[1757287228260,2.5569713,887.39,883.04,1.7736649]
[1757287229155,2.5569713,887.37,883.07,1.7736649]
[1757287229659,8.2193106,890.25,883.24,1.7736649]
[1757287229660,2.5569713,887.14,883.24,1.7736649]
[1757287230058,2.5569713,887.3,883.24,1.7736649]
[1757287230560,2.5569713,887.3,883.27,1.7736649]
[1757287230857,2.5569713,887.3,883.24,1.7736649]
[1757287231061,2.5569713,886.88,883.25,0.73273929]
[1757287231262,2.5569713,886.88,883.21,3.2939491]
[1757287231559,2.5569713,886.58,883.21,3.2939491]
[1757287232062,2.5569713,886.59,883.21,3.2939491]
[1757287232263,2.5569713,886.59,883.19,3.2939491]
[1757287232562,2.5569713,886.56,883.19,3.2939491]
[1757287232763,2.5569713,886.56,883.11,1.7736649]
[1757287233060,2.5569713,886.73,883.02,1.7736649]
[1757287233264,2.5569713,886.73,883.03,2.50662096]
[1757287233563,2.5569713,886.73,883.02,1.7736649]
[1757287234564,2.5569713,886.7,883.02,1.7736649]
[1757287234764,2.5569713,886.7,883.03,2.50657801]
[1757287234963,2.5569713,886.7,883.04,0.73288292]
[1757287235163,2.5569713,886.38,883.04,3.2939491]
[1757287237572,2.5569713,886.38,883.02,3.2939491]
[1757287237770,2.5569713,886.17,882.95,3.2939491]
[1757287238871,2.5569713,886.25,882.95,3.2939491]
[1757287239376,2.5569713,886.24,882.95,3.2939491]
[1757287239874,2.5569713,886.26,882.95,3.2939491]
[1757287240174,2.5569713,886.26,882.95,1.7736649]
[1757287240371,3.5797599,886.57,882.8,1.7736649]
[1757287240671,3.5797599,886.57,882.8,3.2939491]
[1757287240876,2.5569713,886.33,882.8,3.2939491]
[1757287241477,2.5569713,886.38,882.8,3.2939491]
[1757287242076,2.5569713,886.4,882.8,3.2939491]
[1757287243171,2.5569713,886.52,882.8,3.2939491]
[1757287244677,2.5569713,886.51,882.8,3.2939491]
[1757287245577,3.5797599,886.93,882.8,3.2939491]
[1757287245578,2.5569713,886.5,882.8,3.2939491]
[1757287246383,2.5569713,886.5,882.8,1.7736649]
[1757287246582,2.5569713,886.59,882.8,1.7736649]
[1757287247281,2.5569713,886.62,882.8,3.2939491]
[1757287247681,2.5569713,886.52,882.8,3.2939491]
[1757287248178,2.5569713,886.73,882.8,1.7736649]
[1757287248782,2.5569713,886.69,882.8,1.7736649]
[1757287249678,2.5569713,886.69,882.78,1.5202842]
[1757287249679,2.5569713,886.99,882.81,2.51066813]
[1757287249881,2.5569713,886.99,882.89,1.7736649]
[1757287250085,2.5569713,887.14,882.96,1.7736649]
[1757287250283,2.5569713,887.14,883.01,1.7736649]
[1757287250585,2.5569713,887.05,883.03,1.7736649]
[1757287251384,2.5569713,887.05,883.03,1.0135228]
[1757287251585,2.5569713,886.91,883.03,1.75937305]
[1757287252086,2.5569713,886.88,883.03,1.75937305]
[1757287252685,2.5569713,886.82,883.02,3.27965725]
[1757287252986,2.5569713,886.82,882.99,3.27965725]
[1757287253183,2.5569713,886.64,882.98,3.27965725]
[1757287253483,2.5569713,886.64,882.99,3.27965725]
[1757287253684,2.5569713,886.59,882.98,3.27965725]
[1757287253882,2.5569713,886.59,882.99,4.01731864]
[1757287254083,2.5569713,886.6,882.99,3.27965725]
[1757287254584,2.5569713,886.54,882.99,3.27965725]
[1757287255188,2.5569713,886.54,882.98,3.27965725]
[1757287255491,3.5797599,886.49,882.99,4.01822486]
[1757287255687,2.5569713,886.14,882.99,3.27965725]
[1757287255887,2.5569713,886.14,882.98,3.27965725]
[1757287256085,2.5569713,886.14,882.99,4.01822494]
[1757287256286,2.5569713,886.14,882.99,3.27965725]
[1757287256688,2.5569713,886.06,882.99,3.27965725]
[1757287257185,2.5569713,886.05,882.99,3.27965725]
[1757287257790,2.5569713,885.97,882.99,3.27965725]
[1757287258188,2.5569713,885.87,882.99,3.27965725]
[1757287258891,2.5569713,885.87,882.98,3.27965725]
[1757287259187,2.5569713,885.87,882.95,3.27965725]
[1757287259387,2.5569713,885.56,882.95,3.27965725]
[1757287260293,2.5569713,885.56,882.95,2.533807]
[1757287260490,2.5569713,885.69,882.87,3.27965725]
[1757287260691,2.5569713,885.69,882.85,3.27965725]
[1757287260887,2.5569713,885.51,882.84,3.27965725]
[1757287261088,2.5569713,885.51,882.83,3.27965725]
[1757287261290,2.5569713,885.51,882.81,3.27965725]
[1757287261491,2.5569713,885.51,882.79,3.27965725]
[1757287261690,2.5569713,885.51,882.8,4.02160824]
[1757287261889,2.5569713,885.53,882.8,3.27965725]
[1757287262494,2.5569713,885.42,882.8,3.27965725]
[1757287262995,2.5569713,885.42,882.32,2.533807]
[1757287262996,3.5797599,885.74,882.77,0.74585025]
[1757287263291,3.5797599,885.74,882.63,3.27965725]
[1757287263491,2.5569713,885.62,882.63,3.27965725]
[1757287263694,2.5569713,885.62,882.64,4.02822923]
[1757287263895,2.5569713,885.62,882.64,3.2855544]
[1757287264197,2.5569713,885.67,882.69,1.7652702]
[1757287264494,2.5569713,885.67,882.6,3.2855544]
[1757287264692,3.5797599,886.04,881.99,2.533807]
[1757287264693,2.5569713,885.18,882.57,3.2855544]
[1757287265198,2.5569713,885.13,882.51,3.2855544]
[1757287265698,2.5569713,885.14,882.52,4.02888259]
[1757287265895,2.5569713,885.14,882.52,3.2855544]
[1757287266697,2.5569713,885.16,882.52,3.2855544]
[1757287267598,2.5569713,885.19,882.52,3.2855544]
[1757287268303,2.5569713,885.21,882.52,3.2855544]
[1757287268902,2.5569713,885.23,882.52,3.2855544]
[1757287269099,2.5569713,885.23,882.53,4.02837217]
[1757287269303,2.5569713,885.24,882.53,3.2855544]
[1757287269506,2.5569713,885.24,882.54,4.02817838]
[1757287269705,2.5569713,886.74,882.95,1.7652702]